bitfinex/quotes_ETHUSD_20211001
["timestamp","ask_amount","ask_price","bid_price","bid_amount"]
[1633053741504,3.67365487,3028.9,3028.8,0.41976785]
[1633053741905,3.60713587,3028.9,3028.8,0.41976785]
[1633053742306,4.90113587,3028.9,3028.8,0.41976785]
[1633053742508,3.66542887,3028.9,3028.8,0.41976785]
[1633053743706,3.66649498,3028.9,3028.8,0.41976785]
[1633053745507,3.60820198,3028.9,3028.8,0.41976785]
[1633053745910,3.60820198,3028.9,3028.8,0.2]
[1633053746908,3.60820198,3028.9,3028.8,0.41976785]
[1633053747310,3.60820198,3028.9,3028.8,0.40832806]
[1633053747512,3.60820198,3028.9,3028.8,0.35832806]
[1633053751612,3.60820198,3028.9,3028.8,0.13856021]
[1633053751812,5.62413795,3028.9,3028.8,0.13856021]
[1633053752410,5.62413795,3028.9,3028.8,0.35832806]
[1633053753011,3.60820198,3028.9,3028.8,0.35832806]
[1633053754011,5.09734188,3028.9,3028.8,0.35832806]
[1633053754617,5.09734188,3028.9,3028.8,0.4287992]
[1633053755017,3.60820198,3028.9,3028.8,0.4287992]
[1633053755612,3.60820198,3028.9,3028.8,0.49927034]
[1633053756014,5.37391961,3028.9,3028.8,0.49927034]
[1633053756615,5.37391961,3028.9,3028.8,0.51030147]
[1633053757176,5.37391961,3028.9,3028.2,0.91720979]
[1633053757177,6.72664161,3028.9,3028.1,0.46695136]
[1633053757375,0.067382,3028.4,3028.1,0.46695136]
[1633053757575,1.206982,3028.4,3028.1,0.46695136]
[1633053757775,1.1396,3028.4,3028.2,4.95351]
[1633053757976,1.1396,3028.4,3028.3,0.96119593]
[1633053758175,2.89257909,3028.4,3028.3,0.96119593]
[1633053758376,1.1396,3028.4,3028.3,0.96119593]
[1633053759378,2.94491153,3028.4,3028.3,0.96119593]
[1633053759581,2.94491153,3028.4,3028.2,0.21989145]
[1633053760381,2.99213151,3028.4,3028.2,0.21989145]
[1633053761184,1.18681998,3028.4,3028.2,0.21989145]
[1633053761383,0.04721998,3028.4,3028.2,0.21989145]
[1633053761782,0.04721998,3028.4,3028.2,1.07353953]
[1633053762583,0.04721998,3028.4,3028.1,3.76997136]
[1633053763384,0.04721998,3028.4,3028.2,0.21990269]
[1633053763784,4.95449,3028.3,3028.2,0.21990269]
[1633053764586,4.90449,3028.3,3028.2,0.21990269]
[1633053764785,0.04721998,3028.4,3028.2,0.21990269]
[1633053767087,4.95469,3028.3,3028.2,0.21990269]
[1633053767488,4.95469,3028.3,3028.1,0.01103113]
[1633053767489,4.05,3028.2,3028.1,0.01103113]
[1633053767690,0.0242877,3028.2,3027.3,0.003]
[1633053767890,0.067345,3027.7,3027.3,0.003]
[1633053768090,1.643545,3027.7,3027.3,0.003]
[1633053768690,1.643545,3027.7,3027.4,0.11010871]
[1633053769093,1.5762,3027.7,3027.5,0.003]
[1633053769290,1.42230211,3027.6,3027.5,0.003]
[1633053769492,1.057538,3028.1,3027.6,0.07047114]
[1633053769689,0.057538,3028.1,3027.6,0.07047114]
[1633053770290,0.77862181,3028.0,3027.6,0.07047114]
[1633053770492,4.95547,3027.8,3027.6,0.07047114]
[1633053771091,4.95547,3027.8,3027.6,0.14094228]
[1633053771289,2.84772181,3028.0,3027.6,0.14094228]
[1633053771692,1.49591687,3027.8,3027.6,3.44420228]
[1633053773191,6.45130687,3027.8,3027.6,3.44420228]
[1633053773590,0.10519698,3027.7,3027.6,3.44420228]
[1633053773989,0.10519698,3027.7,3027.3,0.003]
[1633053773990,3.16231772,3027.6,3027.3,0.003]
[1633053774193,4.95617,3027.5,3027.3,0.003]
[1633053774791,1.0,3027.4,3027.3,0.003]
[1633053774989,3.76901772,3027.6,3027.3,0.003]
[1633053775790,3.16231772,3027.6,3027.3,0.003]
[1633053776593,8.06805772,3027.6,3027.3,0.003]
[1633053776792,1.0,3027.5,3027.3,0.003]
[1633053776995,0.95,3027.5,3027.3,0.003]
[1633053777594,3.15955031,3027.6,3027.3,0.003]
[1633053778997,0.10515893,3027.5,3027.3,0.003]
[1633053779599,3.15955031,3027.6,3027.3,0.003]
[1633053779797,4.3038794,3028.1,3027.3,0.003]
[1633053779798,0.57062603,3028.4,3027.7,1.74859041]
[1633053779997,0.003,3028.5,3027.8,2.98605846]
[1633053780201,0.003,3028.5,3027.8,0.2]
[1633053780202,1.27017274,3028.5,3027.8,0.2]
[1633053780596,1.27017274,3028.5,3027.9,6.60492]
[1633053780597,0.003,3028.5,3027.9,6.60492]
[1633053780801,0.003,3028.5,3028.0,0.2]
[1633053780802,1.76966287,3028.5,3028.0,0.2]
[1633053781799,1.76966287,3028.5,3028.2,0.83728126]
[1633053781997,1.76966287,3028.5,3028.3,3.30242]
[1633053782200,1.76966287,3028.5,3028.3,3.50242]
[1633053782602,1.816881,3028.5,3028.3,3.50242]
[1633053783402,0.05021813,3028.5,3028.3,6.80482]
[1633053784201,0.05021813,3028.5,3028.3,11.75825]
[1633053784603,0.05021813,3028.5,3028.4,1.61306062]
[1633053784805,0.05021813,3028.5,3028.3,11.75825]
[1633053785402,0.05021813,3028.5,3028.4,0.13491763]
[1633053787406,0.05021813,3028.5,3028.4,0.33491763]
[1633053789806,0.05021813,3028.5,3028.4,1.33491763]
[1633053790006,0.05021813,3028.5,3028.4,1.2]
[1633053790205,0.13053157,3028.5,3028.4,1.2]
[1633053790505,0.13053157,3028.5,3028.4,2.494]
[1633053790705,0.05021813,3028.5,3028.4,2.494]
[1633053790907,0.05021813,3028.5,3028.4,2.62890639]
[1633053791706,0.00021813,3028.5,3028.4,6.37890639]
[1633053791905,0.00021813,3028.5,3028.4,2.62890639]
[1633053792107,0.00021813,3028.5,3028.4,1.33490639]
[1633053792507,0.00021813,3028.5,3028.4,2.62890639]
[1633053792707,0.00021813,3028.5,3028.4,5.32603196]
[1633053792906,0.00021813,3028.5,3028.4,26.38960096]
[1633053793306,0.00021813,3028.5,3028.4,23.69247539]
[1633053793505,0.00021813,3028.5,3028.4,25.5947069]
[1633053793708,0.00021813,3028.5,3028.4,26.49603892]
[1633053793905,0.00021813,3028.5,3028.4,23.69247539]
[1633053794306,0.00021813,3028.5,3028.4,23.95805133]
[1633053794506,3.60713587,3028.9,3028.5,10.05]
[1633053794708,3.60713587,3028.9,3028.6,0.2]
[1633053794905,3.60713587,3028.9,3028.7,20.674]
[1633053795107,3.60713587,3028.9,3028.8,0.2]
[1633053795306,3.60713587,3028.9,3028.8,2.66544699]
[1633053795505,3.68751117,3028.9,3028.8,3.66544699]
[1633053795908,3.68751117,3028.9,3028.8,24.33944699]
[1633053796307,3.60713587,3028.9,3028.8,24.4742635]
[1633053797105,3.60713587,3028.9,3028.8,5.0942635]
[1633053797708,3.60713587,3028.9,3028.8,24.4742635]
[1633053798306,0.006,3029.1,3029.0,11.70103]
[1633053798508,0.006,3029.1,3029.0,7.44503]
[1633053798909,0.006,3029.1,3029.0,26.82503]
[1633053799506,0.006,3029.2,3029.0,27.67615226]
[1633053799708,0.006,3029.2,3029.1,1.0]
[1633053799909,0.006,3029.2,3029.1,2.494]
[1633053800109,0.006,3029.2,3029.1,1.2]
[1633053800310,0.006,3029.2,3029.1,0.2]
[1633053801109,0.08642946,3029.2,3029.1,1.2]
[1633053801510,0.08642946,3029.2,3029.1,2.494]
[1633053801709,0.006,3029.2,3029.1,21.874]
[1633053802110,0.006,3029.2,3029.1,20.58]
[1633053802511,0.006,3029.2,3029.1,21.874]
[1633053802912,0.006,3029.2,3029.1,2.494]
[1633053803110,0.006,3029.2,3029.1,1.2]
[1633053804515,0.006,3029.2,3029.1,0.2]
[1633053804715,0.006,3029.2,3029.1,1.2]
[1633053805519,0.00713762,3029.2,3029.1,1.2]
[1633053805917,0.00713762,3029.2,3029.1,0.2]
[1633053806318,0.00713762,3029.2,3029.1,1.2]
[1633053806518,0.08756748,3029.2,3029.1,1.2]
[1633053807117,0.00713762,3029.2,3029.1,1.2]
[1633053807319,0.00713762,3029.2,3029.1,2.494]
[1633053807719,0.00713762,3029.2,3029.1,0.2]
[1633053808924,0.00713762,3029.2,3029.1,1.2]
[1633053810727,0.00713762,3029.2,3029.1,0.2]
[1633053810931,2.82415482,3029.2,3029.1,0.2]
[1633053811189,0.00713762,3029.2,3029.1,0.2]
[1633053811927,0.08756787,3029.2,3029.1,0.2]
[1633053812128,0.08756787,3029.2,3029.1,2.0985842]
[1633053812726,0.00713762,3029.2,3029.1,2.0985842]
[1633053813128,0.00713762,3029.2,3029.1,0.2]
[1633053813527,0.00713762,3029.2,3028.8,0.2]
[1633053813528,1.30113762,3029.2,3028.8,0.2]
[1633053813729,0.060067,3029.1,3028.8,0.2]
[1633053813936,0.060067,3029.1,3028.5,0.003]
[1633053814193,0.060067,3029.1,3028.3,0.003]
[1633053814339,1.70013138,3028.7,3028.3,1.76539723]
[1633053814530,1.70013138,3028.7,3028.4,0.97158684]
[1633053814729,1.70013138,3028.7,3028.4,0.97458684]
[1633053814927,1.70013138,3028.7,3028.5,0.003]
[1633053815128,3.3624685,3029.1,3028.5,0.003]
[1633053815330,0.060067,3029.1,3028.5,0.003]
[1633053816129,2.04773056,3029.1,3028.5,0.003]
[1633053816931,0.060067,3029.1,3028.5,0.003]
[1633053817331,0.08033077,3028.6,3028.5,0.003]
[1633053818129,3.15885552,3029.1,3028.5,0.003]
[1633053818130,1.72074722,3028.9,3028.5,0.003]
[1633053818331,1.72074722,3028.9,3028.5,0.13788392]
[1633053819135,1.72074722,3028.9,3028.5,0.08788392]
[1633053819532,1.67074722,3028.9,3028.5,0.08788392]
[1633053820532,6.62444722,3028.9,3028.5,0.08788392]
[1633053821933,6.50724473,3028.4,3027.9,0.003]
[1633053822137,0.072071,3028.1,3027.9,0.003]
[1633053822438,4.24957077,3028.1,3027.8,0.003]
[1633053822833,3.29107747,3028.0,3027.8,0.003]
[1633053823034,2.99707747,3028.0,3027.8,0.003]
[1633053823833,2.99707747,3028.0,3027.9,0.06757682]
[1633053824035,10.89905747,3028.0,3027.9,0.06757682]
[1633053824234,18.89905747,3028.0,3027.9,0.07057682]
[1633053825637,20.13718432,3028.0,3027.9,0.07057682]
[1633053826243,18.89905747,3028.0,3027.9,0.07057682]
[1633053826438,20.13705811,3028.0,3027.9,0.07057682]
[1633053826636,20.13705811,3028.0,3027.3,0.003]
[1633053826637,20.36153348,3028.0,3027.3,0.003]
[1633053826837,4.22049606,3027.9,3027.3,0.003]
[1633053827038,4.4,3027.7,3027.3,0.003]
[1633053827237,0.06434,3027.4,3027.3,0.003]
[1633053827639,1.98541161,3027.4,3027.3,0.003]
[1633053827839,6.94171161,3027.4,3027.3,0.003]
[1633053828240,7.12308908,3027.4,3027.3,0.003]
[1633053829201,8.23571161,3027.4,3027.3,0.003]
[1633053829345,9.23571161,3027.4,3027.3,0.03692332]
[1633053829940,7.94171161,3027.4,3027.3,0.03692332]
[1633053830343,6.94171161,3027.4,3027.3,0.03692332]
[1633053832540,7.94171161,3027.4,3027.3,0.03692332]
[1633053833139,6.94171161,3027.4,3027.3,0.03692332]
[1633053833740,7.12308948,3027.4,3027.3,0.003]
[1633053834741,6.94171161,3027.4,3027.3,0.003]
[1633053834942,6.94171161,3027.4,3027.3,0.03692332]
[1633053836344,1.98541161,3027.4,3027.3,0.03692332]
[1633053836944,3.27941161,3027.4,3027.3,0.03692332]
[1633053837144,1.98541161,3027.4,3027.3,0.03692332]
[1633053837346,5.72299102,3027.4,3027.3,0.03692332]
[1633053837945,2.98541161,3027.4,3027.3,0.03692332]
[1633053838144,5.75951842,3027.4,3027.3,0.03692332]
[1633053838546,7.05351842,3027.4,3027.3,0.03692332]
[1633053838747,5.5,3027.3,3027.2,0.00633004]
[1633053838947,5.5,3027.3,3026.6,0.00633004]
[1633053838948,4.7,3027.2,3026.7,0.003]
[1633053839145,0.06503,3026.9,3026.7,0.003]
[1633053839350,1.45365286,3026.8,3026.7,0.003]
[1633053839546,13.04721839,3026.8,3026.7,0.003]
[1633053839746,13.04721839,3026.8,3026.6,0.00633004]
[1633053839747,7.1,3026.7,3026.6,0.00633004]
[1633053839946,21.576657,3026.7,3026.6,0.00633004]
[1633053840145,21.576657,3026.7,3025.0,3.8774788]
[1633053840146,3.9,3026.6,3025.1,0.006]
[1633053840348,3.306453,3025.5,3025.1,0.006]
[1633053840549,1.5038283,3025.3,3025.1,0.006]
[1633053840745,3.1052714,3025.2,3025.1,0.006]
[1633053840947,1.5038283,3025.3,3025.1,0.006]
[1633053841211,1.5038283,3025.3,3025.2,0.96266374]
[1633053841546,1.5038283,3025.3,3025.2,0.96866374]
[1633053841950,4.4226318,3025.3,3025.2,0.96866374]
[1633053842147,1.5038283,3025.3,3025.2,0.96866374]
[1633053842547,1.5038283,3025.3,3025.2,0.006]
[1633053842747,4.36787842,3025.3,3025.2,0.006]
[1633053842948,4.34531371,3025.3,3025.1,0.006]
[1633053843149,2.78591197,3025.2,3025.1,0.006]
[1633053843351,2.84360597,3025.2,3025.1,0.006]
[1633053843550,2.693094,3025.2,3025.1,0.006]
[1633053844554,2.693094,3025.2,3024.8,0.009]
[1633053844754,0.19800176,3025.2,3024.8,1.48784454]
[1633053844950,0.19800176,3025.2,3024.8,1.68784454]
[1633053845151,0.19800176,3025.2,3024.9,0.009]
[1633053845754,0.057538,3025.7,3024.9,0.009]
[1633053846951,5.016708,3025.7,3024.9,0.009]
[1633053847212,3.3063559,3025.5,3024.9,0.009]
[1633053847750,1.46262247,3025.2,3024.9,0.009]
[1633053849953,0.20694634,3025.1,3024.9,0.009]
[1633053850215,3.51355694,3025.1,3024.9,0.009]
[1633053851354,3.3066106,3025.1,3024.9,0.009]
[1633053851755,1.46262247,3025.2,3024.9,0.009]
[1633053851954,1.46262247,3025.2,3024.9,3.31475]
[1633053852159,1.46262247,3025.2,3024.9,4.23850181]
[1633053852358,8.0,3025.5,3025.0,0.009]
[1633053852755,0.063132,3025.2,3025.0,0.009]
[1633053853216,0.063132,3025.2,3024.5,0.012]
[1633053853557,0.87037533,3024.8,3024.5,0.012]
[1633053853756,1.67409706,3024.7,3024.5,0.012]
[1633053854358,0.063132,3025.2,3024.5,0.012]
[1633053854558,12.874,3025.4,3024.5,0.012]
[1633053854760,11.874,3025.4,3024.6,0.2]
[1633053855169,11.704238,3025.7,3024.7,0.009]
[1633053855360,0.84168587,3025.3,3024.8,0.2]
[1633053855559,2.01823416,3025.2,3024.8,0.2]
[1633053855761,2.01823416,3025.2,3024.9,0.009]
[1633053856159,5.32413546,3025.2,3024.9,0.009]
[1633053856364,4.95972,3025.1,3024.9,0.009]
[1633053857365,4.95972,3025.1,3024.5,0.003]
[1633053857366,2.76096497,3025.0,3024.5,0.003]
[1633053857563,4.8598448,3025.1,3024.5,0.003]
[1633053857564,1.88462425,3024.6,3024.5,0.003]
[1633053857760,1.88462425,3024.6,3024.4,0.003]
[1633053858361,2.74324214,3024.5,3024.4,0.003]
[1633053858564,6.84538425,3024.6,3024.4,0.003]
[1633053859567,6.84538425,3024.6,3024.3,0.94590682]
[1633053860968,7.05224827,3024.6,3024.3,0.94590682]
[1633053861969,6.84538425,3024.6,3024.3,0.94590682]
[1633053862233,2.73049555,3024.5,3024.3,0.94590682]
[1633053862370,1.88462425,3024.6,3024.3,0.94590682]
[1633053862772,4.96136,3024.4,3024.3,0.94590682]
[1633053863174,1.88462425,3024.6,3024.3,0.94590682]
[1633053863370,1.88462425,3024.6,3024.3,0.89590682]
[1633053863770,1.88462425,3024.6,3024.3,0.84590682]
[1633053864172,6.84515425,3024.6,3024.3,0.84590682]
[1633053864571,9.66755509,3024.6,3024.3,0.84590682]
[1633053864771,6.84515425,3024.6,3024.3,0.84590682]
[1633053866371,1.0,3024.5,3024.3,0.84590682]
[1633053866571,2.09148866,3024.6,3024.3,0.84590682]
[1633053866774,4.96113,3024.5,3024.3,0.84590682]
[1633053869577,1.0,3024.4,3024.3,0.84590682]
[1633053869775,4.96113,3024.5,3024.3,0.84590682]
[1633053869975,1.0,3024.4,3024.3,0.84590682]
[1633053870775,1.0,3024.4,3024.3,0.74590682]
[1633053871377,4.96113,3024.5,3024.3,0.74590682]
[1633053871579,1.0,3024.4,3024.3,0.74590682]
[1633053872279,1.0,3024.4,3024.3,0.73825782]
[1633053875683,3.81953193,3024.4,3024.3,0.73825782]
[1633053875883,1.0,3024.4,3024.3,0.73825782]
[1633053877081,9.0,3024.4,3024.3,0.73825782]
[1633053877281,1.20684251,3024.4,3024.3,0.73825782]
[1633053877482,9.20684251,3024.4,3024.3,0.73825782]
[1633053877681,9.0,3024.4,3024.3,0.73825782]
[1633053878083,9.0,3024.4,3024.3,0.66417908]
[1633053879083,9.0,3024.4,3024.3,0.59010034]
[1633053880089,9.0,3024.4,3024.3,0.5160216]
[1633053881146,9.0,3024.4,3024.3,0.44194286]
[1633053882546,9.20684288,3024.4,3024.3,0.44194286]
[1633053882945,9.0,3024.4,3024.3,0.44194286]
[1633053883245,9.0,3024.4,3024.3,0.35053713]
[1633053884250,9.0,3024.4,3024.3,0.2591314]
[1633053885247,9.0,3024.4,3024.3,0.16772567]
[1633053885850,13.96205,3024.4,3024.3,0.16772567]
[1633053886054,14.021306,3024.4,3024.3,0.16772567]
[1633053886259,14.021306,3024.4,3024.3,0.07631994]
[1633053887049,14.021306,3024.4,3024.0,0.003]
[1633053887050,15.315306,3024.4,3024.0,0.003]
[1633053887250,3.3085537,3024.2,3024.0,0.003]
[1633053887450,1.0,3024.1,3023.3,0.006]
[1633053887649,0.0632,3023.9,3023.2,0.006]
[1633053888049,0.0632,3023.9,3022.9,0.003]
[1633053888050,0.96987552,3023.4,3022.9,0.009]
[1633053888250,0.96987552,3023.4,3022.8,0.159]
[1633053888451,0.96987552,3023.4,3022.5,0.003]
[1633053888452,2.71914565,3023.3,3022.5,0.003]
[1633053888850,4.27849132,3023.4,3022.5,0.003]
[1633053889050,1.91737973,3022.5,3022.3,0.003]
[1633053889250,0.91669088,3022.4,3022.3,0.003]
[1633053889850,3.66774281,3022.4,3022.3,0.003]
[1633053890052,0.91669088,3022.4,3022.3,0.003]
[1633053890451,0.91669088,3022.4,3021.7,1.00206673]
[1633053890650,3.74011413,3022.4,3021.7,1.00206673]
[1633053890851,3.74011413,3022.4,3021.8,0.006]
[1633053891255,1.50457781,3021.9,3021.8,0.006]
[1633053891451,0.35579663,3021.9,3021.8,1.3]
[1633053891652,2.95518553,3022.3,3021.8,6.2637]
[1633053891853,0.91669088,3022.4,3021.8,4.9697]
[1633053892051,0.91669088,3022.4,3021.9,0.006]
[1633053892353,2.72474757,3022.3,3021.9,0.006]
[1633053892752,1.91669088,3022.4,3021.6,0.006]
[1633053892952,4.65885174,3022.4,3021.6,0.006]
[1633053893153,1.68198439,3021.8,3021.7,0.94202334]
[1633053893554,1.68198439,3021.8,3021.7,0.94802334]
[1633053893760,2.87924214,3022.2,3021.7,0.94802334]
[1633053893956,1.0,3022.3,3021.7,0.94802334]
[1633053894155,3.3101626,3022.2,3021.8,0.006]
[1633053894756,1.0,3022.4,3021.9,1.82014588]
[1633053895156,2.71697984,3022.6,3022.0,0.006]
[1633053895359,3.3096308,3022.3,3022.0,0.006]
[1633053895556,3.3096308,3022.3,3021.8,0.006]
[1633053895557,4.96478,3022.1,3021.8,0.006]
[1633053896160,1.77872594,3021.9,3021.8,0.006]
[1633053897361,4.96497,3022.0,3021.6,1.57339718]
[1633053897760,4.96497,3022.0,3021.7,0.006]
[1633053897960,11.8899,3022.8,3021.7,0.006]
[1633053897961,11.3092405,3022.6,3022.0,1.12088484]
[1633053898162,11.3989,3023.0,3022.1,0.2]
[1633053898363,1.83186017,3022.9,3022.1,0.203]
[1633053898564,1.83186017,3022.9,3022.5,0.028769]
[1633053898760,0.20659454,3022.8,3022.5,1.6006]
[1633053898964,0.20659454,3022.8,3022.5,1.6036]
[1633053902363,0.20659454,3022.8,3022.6,1.53757426]
[1633053903562,0.20659454,3022.8,3022.6,6.49998426]
[1633053903762,0.20659454,3022.8,3022.6,4.96241]
[1633053903962,0.20659454,3022.8,3022.5,9.82802]
[1633053904165,0.20659454,3022.8,3022.6,1.294]
[1633053904364,0.20659454,3022.8,3022.5,9.82802]
[1633053904565,5.17021454,3022.8,3022.5,2.3931]
[1633053904764,5.17021454,3022.8,3022.5,1.6036]
[1633053904964,0.20659454,3022.8,3022.7,0.028769]
[1633053905166,0.20659454,3022.8,3022.5,1.6036]
[1633053906365,0.20659454,3022.8,3022.5,0.003]
[1633053906965,0.20659454,3022.8,3022.4,0.003]
[1633053907765,1.51573894,3022.6,3022.4,0.003]
[1633053908766,1.46573894,3022.6,3022.4,0.003]
[1633053908966,1.68127844,3022.6,3022.4,0.003]
[1633053909371,0.2155395,3022.6,3022.4,0.003]
[1633053911369,0.2155395,3022.6,3022.5,7.194]
[1633053911568,0.2155395,3022.6,3022.5,1.494]
[1633053911769,0.2155395,3022.6,3022.5,1.497]
[1633053912571,3.95e-05,3022.6,3022.5,1.497]
[1633053912770,0.003,3023.5,3022.6,10.1655]
[1633053912970,0.003,3023.5,3023.1,0.028769]
[1633053913171,0.003,3023.5,3023.2,0.2]
[1633053913572,0.003,3023.5,3023.3,0.87089681]
[1633053913770,0.003,3023.5,3023.4,0.2]
[1633053913971,0.003,3023.5,3023.3,0.2]
[1633053914370,0.11089617,3023.5,3023.3,0.2]
[1633053914971,1.294,3023.4,3022.6,0.1655]
[1633053915174,15.49226617,3023.5,3022.6,0.1655]
[1633053915175,0.079355,3023.0,3022.6,0.1655]
[1633053915772,0.74822182,3022.9,3022.6,0.1655]
[1633053915972,2.54934357,3022.9,3022.6,0.1655]
[1633053916373,1.0,3022.8,3022.6,0.1655]
[1633053916575,5.96394,3022.8,3022.6,0.1655]
[1633053917180,1.294,3022.7,3022.6,0.1655]
[1633053917775,7.91475,3022.7,3022.6,0.1655]
[1633053917974,8.91475,3022.7,3022.6,0.1655]
[1633053919778,9.02254275,3022.7,3022.6,0.1655]
[1633053920177,9.02254275,3022.7,3022.1,0.003]
[1633053920178,6.2,3022.6,3022.1,0.003]
[1633053920376,0.068293,3022.2,3022.1,0.003]
[1633053920779,1.70974654,3022.2,3022.1,0.003]
[1633053920978,0.10779275,3022.7,3022.1,2.6935637]
[1633053921186,5.07180275,3022.7,3022.2,0.2]
[1633053921379,3.3094323,3022.5,3022.2,0.203]
[1633053921578,3.3094323,3022.5,3022.3,0.003]
[1633053921778,0.10779275,3022.7,3022.3,0.003]
[1633053921979,1.75916439,3022.6,3022.4,0.2]
[1633053922381,1.75916439,3022.6,3022.5,0.003]
[1633053922582,9.01747439,3022.6,3022.5,0.203]
[1633053922779,16.01747439,3022.6,3022.5,0.203]
[1633053922980,17.01747439,3022.6,3022.5,0.203]
[1633053923380,17.01747439,3022.6,3022.5,0.003]
[1633053923779,17.01747439,3022.6,3022.0,1.12388484]
[1633053923780,17.01747439,3022.6,3022.3,0.003]
[1633053923979,2.294,3022.5,3022.1,0.003]
[1633053924183,0.060692,3022.4,3022.1,0.003]
[1633053924581,5.025802,3022.4,3022.1,0.003]
[1633053924779,5.025802,3022.4,3022.2,0.09963885]
[1633053924983,1.0,3022.3,3022.2,0.09963885]
[1633053925182,3.3091782,3022.9,3022.3,7.6]
[1633053925381,35.3925,3023.6,3022.8,3.30848]
[1633053925680,8.27429,3023.8,3022.9,0.2]
[1633053925681,4.96606,3023.5,3022.9,0.2]
[1633053926083,5.80043934,3023.5,3022.9,1.06512802]
[1633053926681,0.003,3023.5,3022.9,1.06512802]
[1633053927280,3.3087054,3023.4,3022.9,1.06512802]
[1633053927480,4.87072314,3023.4,3022.9,1.06512802]
[1633053927683,0.003,3023.5,3022.9,1.06512802]
[1633053928882,1.48786839,3023.3,3022.9,1.06512802]
[1633053929483,1.48786839,3023.3,3023.0,3.30827]
[1633053929682,1.48786839,3023.3,3023.1,0.2]
[1633053930285,1.48786839,3023.3,3023.2,0.09944363]
[1633053930684,1.48786839,3023.3,3023.1,0.2]
[1633053930886,1.59574346,3023.3,3023.1,0.2]
[1633053931086,2.59574346,3023.3,3023.1,0.2]
[1633053931487,1.59574346,3023.3,3023.1,0.2]
[1633053934488,6.55881346,3023.3,3023.1,0.2]
[1633053934885,1.0,3023.2,3023.1,0.2]
[1633053935490,1.48786839,3023.3,3023.1,0.2]
[1633053935685,1.48786839,3023.3,3023.1,0.29945447]
[1633053936286,0.10786804,3023.2,3023.1,0.2]
[1633053936887,0.10786804,3023.2,3022.8,3.30871]
[1633053938286,5.07106804,3023.2,3022.8,3.30871]
[1633053938487,3.41689324,3023.2,3022.8,3.30871]
[1633053939487,4.96345,3023.1,3022.8,3.30871]
[1633053941088,4.96345,3023.1,3022.9,0.099487]
[1633053941889,5.07129619,3023.1,3022.8,3.30871]
[1633053946571,4.96345,3023.1,3022.8,3.30871]
[1633053946772,4.96345,3023.1,3022.9,0.099487]
[1633053947372,5.07129656,3023.1,3022.8,3.30871]
[1633053950178,5.96378,3023.0,3022.8,3.30871]
[1633053950374,5.96378,3023.0,3022.5,0.203]
[1633053950976,1.54421192,3022.7,3022.5,0.203]
[1633053951377,6.50818192,3022.7,3022.5,1.16959463]
[1633053951777,4.96397,3022.7,3022.5,1.16959463]
[1633053952178,4.96397,3022.7,3022.6,0.09956292]
[1633053952779,4.96397,3022.7,3022.5,1.16959463]
[1633053952977,5.07176504,3022.7,3022.5,1.16959463]
[1633053953180,0.10779504,3022.7,3022.5,1.16959463]
[1633053953580,0.10779504,3022.7,3022.5,0.203]
[1633053954185,1.95840161,3022.6,3022.5,0.203]
[1633053954785,0.10779504,3022.7,3022.5,0.203]
[1633053954987,5.07154504,3022.7,3022.5,0.203]
[1633053955685,1.77939973,3022.6,3022.5,0.203]
[1633053955885,5.07154504,3022.7,3022.5,0.203]
[1633053955886,0.10779504,3022.7,3022.5,0.203]
[1633053956087,4.96401,3022.6,3022.5,0.203]
[1633053956888,6.94468218,3022.6,3022.5,0.203]
[1633053958092,6.94468218,3022.6,3022.5,0.003]
[1633053958294,10.93736168,3022.6,3022.5,0.003]
[1633053958491,18.93736168,3022.6,3022.4,0.003]
[1633053958692,18.93736168,3022.6,3022.0,1.12388484]
[1633053958693,1.0,3022.3,3022.0,1.12388484]
[1633053958893,0.031166,3022.1,3022.0,1.12388484]
[1633053959092,1.77188625,3022.1,3022.0,1.12388484]
[1633053959293,5.81349646,3022.1,3022.0,1.12388484]
[1633053959492,6.81349646,3022.1,3022.0,1.12388484]
[1633053959693,11.77900646,3022.1,3022.0,1.12388484]
[1633053959893,11.77900646,3022.1,3022.0,1.07388484]
[1633053960094,13.03451632,3022.1,3022.0,1.07388484]
[1633053960296,12.59549401,3022.1,3022.0,1.07388484]
[1633053961096,9.8478838,3022.1,3022.0,1.07388484]
[1633053961356,11.10412664,3022.1,3022.0,1.07388484]
[1633053962556,9.8478838,3022.1,3022.0,1.07388484]
[1633053963156,11.10402487,3022.1,3022.0,1.17357794]
[1633053963956,11.10402487,3022.1,3022.0,1.07388484]
[1633053964160,11.21172425,3022.1,3022.0,1.07388484]
[1633053964961,8.66158318,3022.1,3022.0,1.07388484]
[1633053965761,6.81392963,3022.1,3022.0,1.07388484]
[1633053966961,7.60418568,3022.1,3022.0,1.07388484]
[1633053967361,8.60418568,3022.1,3022.0,1.07388484]
[1633053967561,7.60418568,3022.1,3022.0,1.07388484]
[1633053967960,8.85886834,3022.1,3022.0,1.07388484]
[1633053968560,8.75116896,3022.1,3022.0,1.07388484]
[1633053968763,9.75116896,3022.1,3022.0,1.16046175]
[1633053969364,8.4964863,3022.1,3022.0,1.16046175]
[1633053969562,8.6131544,3022.1,3022.0,1.07388484]
[1633053969964,17.86704851,3022.1,3022.0,1.07388484]
[1633053970164,9.86704851,3022.1,3022.0,1.07388484]
[1633053970566,8.6131544,3022.1,3022.0,1.07388484]
[1633053970765,9.86667562,3022.1,3022.0,1.07388484]
[1633053970968,9.866676,3022.1,3022.0,1.07388484]
[1633053971166,8.6131544,3022.1,3022.0,1.07388484]
[1633053971766,7.6131544,3022.1,3022.0,1.07388484]
[1633053973169,8.6131544,3022.1,3022.0,1.07388484]
[1633053973968,7.6131544,3022.1,3022.0,1.07388484]
[1633053974169,7.4964863,3022.1,3022.0,1.16046175]
[1633053974370,19.34165541,3022.1,3022.0,1.16046175]
[1633053974571,16.4964863,3022.1,3022.0,1.16046175]
[1633053975170,16.61315478,3022.1,3022.0,1.07388484]
[1633053975369,8.61315478,3022.1,3022.0,1.07388484]